bitfinex/quotes_BTCUSD_20250119
["timestamp","ask_amount","ask_price","bid_price","bid_amount"]
[1737307843320,1.72403419,104520.0,104510.0,0.17855511]
[1737307843750,1.62479338,104520.0,104510.0,0.17855511]
[1737307844164,1.56145261,104520.0,104510.0,0.17855511]
[1737307844373,1.62479338,104520.0,104510.0,0.17855511]
[1737307845023,1.63443073,104520.0,104510.0,0.17855511]
[1737307847201,1.57108996,104520.0,104510.0,0.17855511]
[1737307848154,1.47108996,104520.0,104510.0,0.19645343]
[1737307848350,1.59912173,104520.0,104510.0,0.19645343]
[1737307848998,1.74912173,104520.0,104510.0,0.19645343]
[1737307849579,1.04912173,104520.0,104510.0,0.19645343]
[1737307849816,0.75012399,104520.0,104510.0,0.19645343]
[1737307850569,0.75012399,104520.0,104500.0,0.00737061]
[1737307850570,1.6430721,104510.0,104500.0,0.00737061]
[1737307850792,1.83799691,104510.0,104500.0,0.00737061]
[1737307851151,1.90133768,104510.0,104500.0,0.00737061]
[1737307851355,1.90133768,104510.0,104500.0,0.00641379]
[1737307852088,1.90133768,104510.0,104500.0,0.00341379]
[1737307852703,1.90133768,104510.0,104500.0,0.05901521]
[1737307853665,1.90133768,104510.0,104500.0,0.11631521]
[1737307853666,1.93710301,104510.0,104500.0,0.11631521]
[1737307853893,1.93710301,104510.0,104500.0,0.21296503]
[1737307854337,1.93710301,104510.0,104500.0,0.11727203]
[1737307854482,1.93710301,104510.0,104500.0,0.11385824]
[1737307854782,2.63710301,104510.0,104500.0,0.11385824]
[1737307854989,2.63710301,104510.0,104500.0,0.12343477]
[1737307855683,1.85703091,104510.0,104500.0,0.12343477]
[1737307856953,1.85703091,104510.0,104500.0,0.12386287]
[1737307857191,1.15703091,104510.0,104500.0,0.12386287]
[1737307857578,1.12126558,104510.0,104500.0,0.12290605]
[1737307857875,0.25826558,104510.0,104500.0,0.11140605]
[1737307858103,0.25826558,104510.0,104500.0,0.06560605]
[1737307858507,0.48786558,104510.0,104500.0,0.06560605]
[1737307861198,0.88169219,104510.0,104500.0,0.05124095]
[1737307861621,0.0991061,104490.0,104470.0,0.10528953]
[1737307861783,0.29405591,104490.0,104480.0,0.01007674]
[1737307861981,0.48546591,104490.0,104480.0,0.1067457]
[1737307862429,0.48546591,104490.0,104480.0,0.0110337]
[1737307862766,1.18546591,104490.0,104480.0,0.0110337]
[1737307863635,1.18546591,104490.0,104480.0,0.0588537]
[1737307864589,1.18546591,104490.0,104480.0,0.06484031]
[1737307865729,1.08635981,104490.0,104480.0,0.06388335]
[1737307865946,1.14970058,104490.0,104480.0,0.06388335]
[1737307866124,1.08635981,104490.0,104480.0,0.06388335]
[1737307866782,0.38635981,104490.0,104480.0,0.06388335]
[1737307869769,1.08635981,104490.0,104480.0,0.06388335]
[1737307871490,0.38635981,104490.0,104480.0,0.06388335]
[1737307873473,0.51365981,104490.0,104480.0,0.06388335]
[1737307874301,1.21365981,104490.0,104480.0,0.06388335]
[1737307874934,1.21365981,104490.0,104480.0,0.0668767]
[1737307875140,1.18546591,104490.0,104480.0,0.0668767]
[1737307875338,1.18546591,104490.0,104480.0,0.06783368]
[1737307876172,0.48546591,104490.0,104480.0,0.06783368]
[1737307878802,0.57700058,104490.0,104480.0,0.06783368]
[1737307879916,0.57700058,104490.0,104480.0,0.0668767]
[1737307880474,0.66235514,104490.0,104480.0,0.0668767]
[1737307881279,0.66325478,104490.0,104480.0,0.0668767]
[1737307882452,0.66325478,104490.0,104480.0,0.05730017]
[1737307882664,0.79128655,104490.0,104480.0,0.05730017]
[1737307882863,1.49128655,104490.0,104480.0,0.05730017]
[1737307883071,1.50048655,104490.0,104480.0,0.05730017]
[1737307883898,1.51035849,104490.0,104480.0,0.05730017]
[1737307886674,1.38232672,104490.0,104480.0,0.05730017]
[1737307888193,1.37245478,104490.0,104480.0,0.05730017]
[1737307889326,1.30911401,104490.0,104480.0,0.05730017]
[1737307889770,0.60911401,104490.0,104480.0,0.05730017]
[1737307891131,0.6134703,104490.0,104480.0,0.05730017]
[1737307893046,0.67681107,104490.0,104480.0,0.05730017]
[1737307895125,0.80484284,104490.0,104480.0,0.05730017]
[1737307895959,0.67681107,104490.0,104480.0,0.05730017]
[1737307898958,0.80484284,104490.0,104480.0,0.05730017]
[1737307899718,0.80436284,104490.0,104480.0,0.05730017]
[1737307900329,0.74102207,104490.0,104480.0,0.05730017]
[1737307902344,0.51269817,104490.0,104480.0,0.15301217]
[1737307902539,0.41345036,104490.0,104480.0,0.1807372]
[1737307902778,0.41345036,104490.0,104480.0,0.15301217]
[1737307903374,0.31774836,104490.0,104480.0,0.19336844]
[1737307903507,0.31774836,104490.0,104480.0,0.19432538]
[1737307904134,0.00525593,104490.0,104480.0,0.19432538]
[1737307904543,0.10436203,104490.0,104480.0,0.19432538]
[1737307904766,0.20006403,104490.0,104480.0,0.19432538]
[1737307905005,0.20006403,104490.0,104480.0,0.19506274]
[1737307906475,0.29930484,104490.0,104480.0,0.09935074]
[1737307907349,0.29930484,104490.0,104480.0,0.19506274]
[1737307908157,0.29930484,104490.0,104480.0,0.19432538]
[1737307909140,0.3846594,104490.0,104480.0,0.19432538]
[1737307910518,0.29930484,104490.0,104480.0,0.19432538]
[1737307913880,0.00525593,104490.0,104480.0,0.19432538]
[1737307914437,0.10436203,104490.0,104480.0,0.19432538]
[1737307914682,0.00525593,104490.0,104480.0,0.19432538]
[1737307914991,0.10436203,104490.0,104480.0,0.19432538]
[1737307916138,0.10436203,104490.0,104480.0,0.19506274]
[1737307916541,0.00525593,104490.0,104480.0,0.19506274]
[1737307918225,0.00525593,104490.0,104480.0,0.20457713]
[1737307921107,0.00525593,104490.0,104480.0,0.20383977]
[1737307929077,0.28326403,104490.0,104480.0,0.19432531]
[1737307930185,0.18756203,104490.0,104480.0,0.19432531]
[1737307931915,0.18756203,104490.0,104480.0,0.19432531]
[1737307934960,0.18680795,104490.0,104480.0,0.19432531]
[1737307935554,0.18680795,104490.0,104480.0,0.19911416]
[1737307939619,0.18680795,104490.0,104480.0,0.19911416]
[1737307940348,0.08770185,104490.0,104480.0,0.19911416]
[1737307940490,0.00450185,104490.0,104480.0,0.24069505]
[1737307940847,0.00450185,104490.0,104480.0,0.30931267]
[1737307941049,0.00014556,104490.0,104480.0,0.30931267]
[1737307941479,0.00014556,104490.0,104480.0,0.22615089]
[1737307941630,0.00014556,104490.0,104480.0,0.19815729]
[1737307941953,0.00014556,104490.0,104480.0,0.24069502]
[1737307942193,0.00014556,104490.0,104480.0,0.23973818]
[1737307942566,0.0787,104500.0,104480.0,0.14402618]
[1737307942766,0.0787,104500.0,104490.0,0.09665885]
[1737307944343,0.0787,104500.0,104490.0,0.14447885]
[1737307944768,0.0787,104500.0,104490.0,0.15904124]
[1737307945659,0.12929964,104510.0,104500.0,0.095693]
[1737307945826,0.12929964,104510.0,104500.0,0.14446975]
[1737307946597,0.12929964,104510.0,104500.0,0.18482602]
[1737307949344,0.12929964,104510.0,104500.0,0.1945962]
[1737307950827,0.00089964,104510.0,104500.0,0.1945962]
[1737307952549,0.00089964,104510.0,104500.0,0.19380341]
[1737307952787,0.00089964,104510.0,104500.0,0.19284666]
[1737307953000,0.12589964,104510.0,104500.0,0.27888011]
[1737307953688,0.32068974,104510.0,104500.0,0.23852384]
[1737307953920,0.41993055,104510.0,104500.0,0.27888011]
[1737307954125,0.41993055,104510.0,104500.0,0.23852384]
[1737307954746,0.41993055,104510.0,104500.0,0.19284666]
[1737307954956,0.41993055,104510.0,104500.0,0.19380346]
[1737307955170,0.32424655,104510.0,104500.0,0.19380346]
[1737307956297,0.12589964,104510.0,104500.0,0.19380346]
[1737307956502,0.12589964,104510.0,104500.0,0.22651787]
[1737307956746,0.12589964,104510.0,104500.0,0.22556107]
[1737307956949,0.12589964,104510.0,104500.0,0.2225687]
[1737307957124,0.12589964,104510.0,104500.0,0.22556088]
[1737307957932,0.12589964,104510.0,104500.0,0.28888767]
[1737307957933,0.07979964,104510.0,104500.0,0.28888767]
[1737307958376,0.00089964,104510.0,104500.0,0.28888767]
[1737307959599,0.00089964,104510.0,104500.0,0.28968102]
[1737307959959,0.00089964,104510.0,104500.0,0.22635423]
[1737307960543,0.00089964,104510.0,104500.0,0.31238768]
[1737307960912,0.00089964,104510.0,104500.0,0.27887992]
[1737307962167,0.00089964,104510.0,104500.0,0.19284647]
[1737307962401,0.00089964,104510.0,104500.0,0.19380315]
[1737307962605,0.00089964,104510.0,104500.0,0.34380315]
[1737307962807,0.00089964,104510.0,104500.0,0.34284647]
[1737307964442,0.00089964,104510.0,104500.0,0.34361488]
[1737307966022,0.00089964,104510.0,104500.0,0.34284647]
[1737307972331,0.00089964,104510.0,104500.0,0.40617326]
[1737307973024,0.00089964,104510.0,104500.0,0.34284647]
[1737307974182,0.00089964,104510.0,104500.0,0.40706716]
[1737307974387,0.00089964,104510.0,104500.0,0.43978157]
[1737307974603,0.00089964,104510.0,104500.0,0.40706716]
[1737307974865,0.00089964,104510.0,104500.0,0.42683833]
[1737307975060,0.00089964,104510.0,104500.0,0.55879355]
[1737307975923,0.00089964,104510.0,104500.0,0.52607914]
[1737307976157,0.00089964,104510.0,104500.0,0.61211259]
[1737307976369,0.12589901,104520.0,104510.0,0.28604027]
[1737307976724,0.12589901,104520.0,104510.0,0.33386027]
[1737307977510,0.11243888,104520.0,104510.0,0.33386027]
[1737307978104,0.11243888,104520.0,104510.0,0.33238027]
[1737307978301,0.11243888,104520.0,104510.0,0.293504]
[1737307978768,0.11243888,104520.0,104510.0,0.29948902]
[1737307978974,0.11243888,104520.0,104510.0,0.33836529]
[1737307979504,0.11243888,104520.0,104510.0,0.34135735]
[1737307980722,0.11243888,104520.0,104510.0,0.34212544]
[1737307985047,0.11243888,104520.0,104510.0,0.37483985]
[1737307985927,0.11243888,104520.0,104510.0,0.43905225]
[1737307986154,0.0789,104520.0,104510.0,0.53872106]
[1737307986320,0.1245,104530.0,104520.0,0.13455127]
[1737307986526,0.1245,104530.0,104520.0,0.24664632]
[1737307986750,0.1245,104530.0,104520.0,0.24568977]
[1737307986967,0.0786,104530.0,104520.0,0.37853889]
[1737307987181,0.77949901,104540.0,104530.0,0.095666]
[1737307987382,0.77949901,104540.0,104530.0,0.09662246]
[1737307987582,0.77954901,104540.0,104530.0,0.14444246]
[1737307988560,0.77954901,104540.0,104530.0,0.15042748]
[1737307989149,0.82544901,104540.0,104530.0,0.15042748]
[1737307991245,0.82544901,104540.0,104530.0,0.15119558]
[1737307991910,1.18277142,104540.0,104530.0,0.05457312]
[1737307992112,1.18277142,104540.0,104530.0,0.05552966]
[1737307992331,1.18277142,104540.0,104530.0,0.05457312]
[1737307992488,1.18277142,104540.0,104530.0,0.05450712]
[1737307992908,1.11945292,104540.0,104530.0,0.05450712]
[1737307994377,1.11945292,104540.0,104530.0,0.05673085]
[1737307996056,1.11945292,104540.0,104530.0,0.05768739]
[1737307998471,1.11945292,104540.0,104530.0,0.05673085]
[1737307998767,1.11945292,104540.0,104530.0,0.05768739]
[1737307999370,1.11945292,104540.0,104530.0,0.15335339]
[1737308004348,1.20506779,104540.0,104530.0,0.15335339]
[1737308005556,1.11945292,104540.0,104530.0,0.15335339]
[1737308006233,1.11945292,104540.0,104530.0,0.05768739]
[1737308006372,1.11945292,104540.0,104530.0,0.05673085]
[1737308006785,1.11945292,104540.0,104530.0,0.05768739]
[1737308007857,1.11945292,104540.0,104530.0,0.16052212]
[1737308008060,1.20506779,104540.0,104530.0,0.16052212]
[1737308009194,1.20506779,104540.0,104530.0,0.06528402]
[1737308013401,1.20506779,104540.0,104530.0,0.16095002]
[1737308013934,1.10941079,104540.0,104530.0,0.16095002]
[1737308014396,1.20506779,104540.0,104530.0,0.16095002]
[1737308014952,0.91106388,104540.0,104530.0,0.16095002]
[1737308015651,0.91106388,104540.0,104530.0,0.16171347]
[1737308016115,0.86516388,104540.0,104530.0,0.15872164]
[1737308016317,0.78656388,104540.0,104530.0,0.52715112]
[1737308016520,0.78656388,104540.0,104530.0,0.52619458]
[1737308016857,0.78656388,104540.0,104530.0,0.55890899]
[1737308017037,0.70094901,104540.0,104530.0,0.58729546]
[1737308017238,0.70094901,104540.0,104530.0,0.58653201]
[1737308017382,0.70094901,104540.0,104530.0,0.55814554]
[1737308018029,0.70094901,104540.0,104530.0,0.52543113]
[1737308018933,0.70094901,104540.0,104530.0,1.10079587]
[1737308020118,0.70094901,104540.0,104530.0,1.11983842]
[1737308020326,0.70094901,104540.0,104530.0,1.33462651]
[1737308020518,0.70094901,104540.0,104530.0,1.32745778]
[1737308020945,0.70094901,104540.0,104530.0,1.33461109]
[1737308021710,0.70094901,104540.0,104530.0,1.07651072]
[1737308022770,0.70094901,104540.0,104530.0,1.08596225]
[1737308023768,0.70094901,104540.0,104530.0,1.38634752]
[1737308025933,0.70094901,104540.0,104530.0,1.25761098]
[1737308026756,0.70094901,104540.0,104530.0,1.29032539]
[1737308029199,0.78374901,104540.0,104530.0,1.30593514]
[1737308029357,0.78374901,104540.0,104530.0,1.05758823]
[1737308029553,0.78374901,104540.0,104530.0,1.03765178]
[1737308030070,0.78374901,104540.0,104530.0,1.03854568]
[1737308030292,0.78374901,104540.0,104530.0,1.18854568]
[1737308030717,0.78374901,104540.0,104530.0,0.35620793]
[1737308031547,0.78374901,104540.0,104530.0,0.34905462]
[1737308032243,0.78374901,104540.0,104530.0,0.3430696]
[1737308032450,0.78374901,104540.0,104530.0,0.3421757]
[1737308032651,0.78374901,104540.0,104530.0,0.30329943]
[1737308032793,0.82884901,104540.0,104530.0,0.30329943]
[1737308033008,0.82884901,104540.0,104530.0,0.3421757]
[1737308033371,0.82884901,104540.0,104530.0,0.30329943]
[1737308034050,0.82884901,104540.0,104530.0,0.3421757]
[1737308034450,0.82884901,104540.0,104530.0,0.30329943]
[1737308034659,0.82884901,104540.0,104530.0,0.3421757]
[1737308035287,1.14984901,104540.0,104530.0,0.3421757]
[1737308035489,1.14984901,104540.0,104530.0,0.30329943]
[1737308035709,1.14984901,104540.0,104530.0,0.3421757]
[1737308036807,1.14984901,104540.0,104530.0,0.4063881]
[1737308037133,1.14984901,104540.0,104530.0,0.3430696]
[1737308038581,1.14984901,104540.0,104530.0,0.50562891]
[1737308038784,1.10474901,104540.0,104530.0,0.50562891]
[1737308041032,1.10474901,104540.0,104530.0,0.59139479]
[1737308042439,1.10474901,104540.0,104530.0,0.50562891]
[1737308044911,1.10474901,104540.0,104530.0,0.5116109]
[1737308046121,1.02194901,104540.0,104530.0,0.5346109]
[1737308046348,0.70094901,104540.0,104530.0,0.57992105]
[1737308046666,0.70094901,104540.0,104530.0,0.60826416]
[1737308047084,0.70094901,104540.0,104530.0,1.13450037]
[1737308047986,0.65160901,104540.0,104530.0,1.19782257]
[1737308048340,0.65160901,104540.0,104530.0,1.13488972]
[1737308048545,0.33225403,104540.0,104530.0,1.16986141]
[1737308048746,0.30434757,104540.0,104530.0,1.10654291]
[1737308049594,0.30434757,104540.0,104530.0,1.16986141]
[1737308049801,0.30434757,104540.0,104530.0,1.34136657]
[1737308050138,0.30434757,104540.0,104530.0,1.27715417]
[1737308050440,0.30434757,104540.0,104530.0,1.22583792]
[1737308050672,0.30434757,104540.0,104530.0,1.20973792]
[1737308051362,0.30434757,104540.0,104530.0,1.33835581]
[1737308051777,0.30434757,104540.0,104530.0,1.29947954]
[1737308051979,0.38014757,104540.0,104530.0,1.29947954]
[1737308052704,0.38014757,104540.0,104530.0,0.40849573]
[1737308052929,0.38014757,104540.0,104530.0,0.447372]
[1737308053333,0.38014757,104540.0,104530.0,0.597372]
[1737308053795,0.38014757,104540.0,104530.0,0.5116109]
[1737308057268,0.38014757,104540.0,104530.0,0.5346109]
[1737308058842,0.38014757,104540.0,104530.0,0.620372]
[1737308059225,0.91964757,104540.0,104530.0,0.620372]
[1737308060103,0.91964757,104540.0,104530.0,1.22108383]
[1737308060303,0.91964757,104540.0,104530.0,1.22197773]
[1737308061704,0.91964757,104540.0,104530.0,1.43676582]
[1737308062786,0.91964757,104540.0,104530.0,1.35100472]
[1737308063613,0.91964757,104540.0,104530.0,1.34502273]
[1737308066991,0.91964757,104540.0,104530.0,1.4309721]
[1737308067209,0.91964757,104540.0,104530.0,1.43695404]
[1737308068212,0.91964757,104540.0,104530.0,1.35100467]
[1737308070547,0.91964757,104540.0,104530.0,1.22238678]
[1737308072002,0.84384757,104540.0,104530.0,1.25159693]
[1737308072207,0.84384757,104540.0,104530.0,1.35939033]
[1737308072979,0.72906157,104540.0,104530.0,1.29607183]
[1737308073184,0.69079957,104540.0,104530.0,1.26769693]
[1737308073385,0.65253757,104540.0,104530.0,1.13950405]
[1737308074742,0.65253757,104540.0,104530.0,0.88140368]
[1737308075966,0.65253757,104540.0,104530.0,0.79632336]
[1737308076173,0.73433757,104540.0,104530.0,0.83609353]
[1737308076373,0.73433757,104540.0,104530.0,0.79721726]
[1737308076544,0.73433757,104540.0,104530.0,0.83609353]
[1737308076966,0.73433757,104540.0,104530.0,1.01200894]
[1737308077174,0.73433757,104540.0,104530.0,1.05088521]
[1737308077748,0.73433757,104540.0,104530.0,1.01200894]
[1737308077945,0.73433757,104540.0,104530.0,1.18384205]
[1737308078675,0.73428157,104540.0,104530.0,1.18384205]
[1737308079527,0.73428157,104540.0,104530.0,1.22271832]
[1737308080182,0.73428157,104540.0,104530.0,1.21673638]
[1737308080386,0.73428157,104540.0,104530.0,1.17786011]
[1737308080590,0.73428157,104540.0,104530.0,1.34561108]
[1737308080793,0.73428157,104540.0,104530.0,1.30673481]
[1737308081306,0.73428157,104540.0,104530.0,1.34561108]
[1737308081846,0.73428157,104540.0,104530.0,1.1308194]
[1737308082340,0.73428157,104540.0,104530.0,1.09194313]
[1737308082532,0.73428157,104540.0,104530.0,1.1308194]
[1737308082733,0.73428157,104540.0,104530.0,1.00562463]
[1737308083156,0.73428157,104540.0,104530.0,1.06894313]
[1737308083359,0.19478157,104540.0,104530.0,1.28373481]
[1737308083576,0.24178157,104540.0,104530.0,1.28373481]
[1737308086836,0.24178157,104540.0,104530.0,1.32261108]
[1737308087043,0.24178157,104540.0,104530.0,1.28373481]
[1737308087191,0.24178157,104540.0,104530.0,1.40857629]
[1737308087398,0.24103556,104540.0,104530.0,1.40857629]
[1737308088337,0.24103556,104540.0,104530.0,1.19378461]
[1737308090107,0.24103556,104540.0,104530.0,1.19976659]
[1737308093417,0.78053556,104540.0,104530.0,1.19976659]
[1737308095481,0.73353556,104540.0,104530.0,1.35159306]
[1737308095706,0.70744655,104540.0,104530.0,1.35159306]
[1737308096120,0.70744655,104540.0,104530.0,1.34561108]
[1737308096698,0.70744655,104540.0,104530.0,1.04490327]
[1737308097096,0.68753662,104540.0,104530.0,1.04490327]
[1737308097297,0.01437,104550.0,104540.0,0.30842717]
[1737308097482,0.04779943,104560.0,104550.0,0.28541817]
[1737308097682,0.04784951,104560.0,104550.0,0.51129598]
[1737308097907,0.04784951,104560.0,104550.0,0.44797748]
[1737308099523,0.04784951,104560.0,104550.0,1.05028164]
[1737308099847,0.04784951,104560.0,104550.0,1.05011482]
[1737308100384,0.12324951,104560.0,104550.0,1.05749482]
[1737308101072,0.12324951,104560.0,104550.0,1.14343084]
[1737308102547,0.12324951,104560.0,104550.0,1.16260419]
[1737308103926,0.12324951,104560.0,104550.0,0.9907062]
[1737308105785,0.12324951,104560.0,104550.0,1.1028299]
[1737308106001,0.00094951,104560.0,104550.0,1.1028299]
[1737308106334,0.61475604,104570.0,104560.0,0.30824135]
[1737308106510,0.083,104570.0,104560.0,0.47080066]
[1737308106664,0.083,104570.0,104560.0,0.47818066]
[1737308108220,0.083,104570.0,104560.0,1.1661885]
[1737308109381,0.083,104570.0,104560.0,1.38106099]
[1737308110391,0.083,104570.0,104560.0,1.34218472]
[1737308110805,0.083,104570.0,104560.0,1.1661885]
[1737308113443,0.083,104570.0,104560.0,0.99429051]
[1737308114239,0.08389839,104570.0,104560.0,0.99429051]
[1737308116227,0.00089839,104570.0,104560.0,0.99429051]
[1737308117591,0.00089839,104570.0,104560.0,0.56403153]
[1737308123676,0.12099922,104580.0,104570.0,0.09635608]
[1737308123885,0.12099922,104580.0,104570.0,0.2672515]
[1737308124084,0.12099922,104580.0,104570.0,0.26629539]
[1737308126793,0.12091141,104580.0,104570.0,0.26629539]
[1737308128235,0.12091141,104580.0,104570.0,0.28525662]
[1737308130922,0.12091141,104580.0,104570.0,0.26343231]
[1737308131730,0.12496345,104580.0,104570.0,0.26343231]
[1737308132465,0.12496345,104580.0,104570.0,0.2728833]
[1737308133120,0.12496345,104580.0,104570.0,0.11245999]
[1737308133556,0.12496345,104580.0,104570.0,0.26245999]
[1737308134183,0.43193708,104580.0,104570.0,0.00738]
[1737308134385,0.1259,104570.0,104560.0,0.2873209]
[1737308134498,0.1259,104570.0,104560.0,0.4373209]
[1737308134710,0.12962437,104570.0,104560.0,0.2873209]
[1737308135325,0.12962437,104570.0,104560.0,0.4373209]
[1737308135894,0.2407481,104570.0,104560.0,0.29690843]
[1737308136301,0.2407481,104570.0,104560.0,0.33476843]
[1737308136733,0.47714421,104570.0,104560.0,0.0382879]
[1737308136944,0.4237671,104570.0,104560.0,0.0382879]
[1737308137787,0.30603465,104560.0,104550.0,0.0004278]
[1737308137991,0.38406619,104560.0,104550.0,0.0004278]
[1737308138191,0.32470511,104560.0,104550.0,0.0004278]
[1737308138805,0.38799249,104560.0,104550.0,0.0004278]
[1737308139014,0.43195365,104540.0,104530.0,0.0004279]
[1737308139218,0.43195365,104540.0,104530.0,0.00047798]
[1737308139416,0.43586579,104540.0,104530.0,0.00047798]
[1737308140049,0.5351066,104540.0,104530.0,0.00047798]
[1737308140320,0.5351066,104540.0,104530.0,0.04829056]
[1737308140535,0.32470995,104540.0,104530.0,0.04829056]
[1737308140748,0.39635733,104540.0,104530.0,0.04829056]
[1737308140954,0.97865604,104520.0,104510.0,0.50208917]
[1737308141167,0.97865604,104520.0,104510.0,0.50213917]
[1737308141370,0.98297462,104520.0,104510.0,0.287512]
[1737308141589,0.98297462,104520.0,104510.0,0.29050404]
[1737308142418,0.98297462,104520.0,104510.0,0.287512]
[1737308142630,0.98297462,104520.0,104510.0,0.437512]
[1737308142829,0.32531858,104520.0,104510.0,0.62657247]
[1737308143181,0.32531858,104520.0,104510.0,0.66544874]
[1737308143391,0.32531858,104520.0,104510.0,0.69044821]
[1737308143644,0.32531858,104520.0,104510.0,0.71344821]
[1737308143858,0.32531858,104520.0,104510.0,0.80254079]
[1737308144029,0.32531858,104520.0,104510.0,0.88424079]
[1737308144897,0.32531858,104520.0,104510.0,0.85843559]
[1737308145286,0.32531858,104520.0,104510.0,0.8554435]
[1737308145714,0.32531858,104520.0,104510.0,0.94129437]
[1737308145903,0.32531858,104520.0,104510.0,0.81471961]
[1737308146108,0.00431858,104520.0,104510.0,0.87800699]
[1737308146835,0.00431858,104520.0,104510.0,0.79215612]
[1737308147078,0.00431858,104520.0,104510.0,0.81130289]
[1737308147355,0.00431858,104520.0,104510.0,0.77242662]
[1737308147603,0.00431858,104520.0,104510.0,0.69072662]
[1737308147827,0.00431858,104520.0,104510.0,0.79289027]
[1737308150323,0.00431858,104520.0,104510.0,0.89589547]
[1737308150752,0.85275604,104540.0,104530.0,0.28526935]
[1737308151099,0.85275604,104540.0,104530.0,0.49561012]
[1737308152469,0.53175604,104560.0,104550.0,0.24637508]
[1737308152672,0.53175604,104560.0,104550.0,0.52000323]
[1737308155979,0.53175604,104560.0,104550.0,0.45671585]
[1737308156549,0.53175604,104560.0,104550.0,0.47620646]
[1737308156941,0.53175604,104560.0,104550.0,0.53949384]
[1737308158128,0.0799,104570.0,104560.0,0.245638]
[1737308158331,0.0799,104570.0,104560.0,0.35673796]
[1737308160436,0.0799,104570.0,104560.0,0.29345058]
[1737308160610,0.0799,104570.0,104560.0,0.35673796]
[1737308160841,0.0799,104570.0,104560.0,0.29345058]
[1737308160962,0.08085698,104570.0,104560.0,0.29345058]
[1737308161371,0.0799,104570.0,104560.0,0.29345058]
[1737308161773,0.08085698,104570.0,104560.0,0.30322631]
[1737308163609,0.08085698,104570.0,104560.0,0.29345058]
[1737308163990,0.0799,104570.0,104560.0,0.14345058]
[1737308164123,0.29029665,104570.0,104560.0,0.14345058]
[1737308164333,0.53146646,104570.0,104560.0,0.14345058]
[1737308164535,0.43583746,104570.0,104560.0,0.14345058]
[1737308166587,0.53146646,104570.0,104560.0,0.14345058]
[1737308166797,0.42034273,104570.0,104560.0,0.14345058]
[1737308168062,0.32106981,104570.0,104560.0,0.04781258]
[1737308168672,0.38435719,104570.0,104560.0,0.04781258]
[1737308169511,0.32106981,104570.0,104560.0,0.04781258]
[1737308169948,0.38435719,104570.0,104560.0,0.04781258]
[1737308170218,0.39267719,104570.0,104560.0,0.04781258]
[1737308171522,0.3935762,104570.0,104560.0,0.04781258]
[1737308172183,0.33028882,104570.0,104560.0,0.14345058]
[1737308172589,0.33028882,104570.0,104560.0,0.04781258]
[1737308173216,0.33610371,104570.0,104560.0,0.04781258]
[1737308182335,0.1329139,104570.0,104560.0,0.20673796]
[1737308182861,0.1329139,104570.0,104560.0,0.14345058]
[1737308184802,0.19773763,104570.0,104560.0,0.14345058]
[1737308185005,0.0866139,104570.0,104560.0,0.14345058]
[1737308185651,0.19773763,104570.0,104560.0,0.14345058]
[1737308185851,0.19773763,104570.0,104560.0,0.53596215]
[1737308185852,0.0067139,104570.0,104560.0,0.53596215]
[1737308186054,0.0067139,104570.0,104560.0,0.58350585]
[1737308186260,0.00581489,104570.0,104560.0,0.7086695]
[1737308186496,5e-08,104570.0,104560.0,0.7086695]
[1737308186737,2.4e-07,104570.0,104560.0,0.67118732]
[1737308186922,0.00644727,104570.0,104560.0,0.64538212]
[1737308187119,0.00644727,104570.0,104560.0,0.67370794]
[1737308187344,0.00644727,104570.0,104560.0,0.64538212]
[1737308187872,0.00644727,104570.0,104560.0,1.34861809]
[1737308188208,0.00081141,104580.0,104570.0,0.09635608]
[1737308188403,0.00095512,104580.0,104570.0,0.307653]
[1737308188614,0.00095512,104580.0,104570.0,0.30669685]
[1737308189339,0.00095512,104580.0,104570.0,0.30596977]
[1737308189693,0.00095512,104580.0,104570.0,0.20672896]
[1737308190396,0.00095512,104580.0,104570.0,0.20768514]
[1737308191265,0.00095512,104580.0,104570.0,0.35768514]
[1737308191473,0.00095512,104580.0,104570.0,0.35672896]
[1737308192665,0.00095512,104580.0,104570.0,0.36637267]
[1737308194760,0.00095512,104580.0,104570.0,0.36680057]
[1737308199627,0.00095512,104580.0,104570.0,0.53005584]
[1737308199910,0.00095512,104580.0,104570.0,0.46676846]
[1737308200121,0.00095512,104580.0,104570.0,0.59193211]
[1737308200384,0.00095512,104580.0,104570.0,0.52864473]
[1737308201630,0.00095512,104580.0,104570.0,1.23113683]
[1737308202139,0.00095512,104580.0,104570.0,1.16853348]
[1737308202340,0.00095512,104580.0,104570.0,1.16926056]
[1737308202853,0.00095512,104580.0,104570.0,0.55249885]
[1737308203335,0.00754519,104580.0,104570.0,0.55249885]
[1737308203546,0.00095512,104580.0,104570.0,0.55249885]
[1737308203750,0.00754519,104580.0,104570.0,0.55249885]
[1737308203870,0.00095512,104580.0,104570.0,0.55249885]
[1737308204074,0.00754519,104580.0,104570.0,0.55249885]
[1737308204274,0.00095512,104580.0,104570.0,0.46676846]
[1737308204484,0.00754519,104580.0,104570.0,0.46676846]
[1737308204683,0.00095512,104580.0,104570.0,0.46676846]
[1737308204903,0.00754519,104580.0,104570.0,0.46676846]
[1737308205138,0.00095512,104580.0,104570.0,0.46676846]
[1737308205350,0.00754519,104580.0,104570.0,0.46676846]
[1737308209524,0.00754519,104580.0,104570.0,0.48976846]
[1737308210869,0.00754519,104580.0,104570.0,1.0200744]
[1737308213401,0.00754519,104580.0,104570.0,0.7040837]
[1737308215093,0.00754519,104580.0,104570.0,0.57549885]
[1737308215293,0.00695703,104580.0,104570.0,0.57549885]
[1737308215716,0.11202337,104600.0,104590.0,0.095611]
[1737308215927,0.11202337,104600.0,104590.0,0.29342358]
[1737308216628,0.11202337,104600.0,104590.0,0.35671096]
[1737308216938,0.00089964,104600.0,104590.0,0.35671096]
[1737308217500,0.00089964,104600.0,104590.0,0.45667885]
[1737308220973,0.00089964,104600.0,104590.0,0.47589585]
[1737308222822,0.00718578,104600.0,104590.0,0.47589585]
[1737308224170,0.00718578,104600.0,104590.0,0.48538948]
[1737308225829,0.00644748,104600.0,104590.0,0.48538948]
[1737308226395,0.00644748,104600.0,104590.0,0.50838948]
[1737308227299,0.00644748,104600.0,104590.0,0.62806575]
[1737308227503,0.00089964,104610.0,104600.0,0.11932908]
[1737308227696,0.00140045,104610.0,104600.0,0.44021298]
[1737308227836,0.00140045,104610.0,104600.0,0.4643372]
[1737308228039,0.00140045,104610.0,104600.0,0.40104982]
[1737308228246,0.00140045,104610.0,104600.0,0.52596985]
[1737308228760,0.00140045,104610.0,104600.0,1.35757016]
[1737308229329,0.00140045,104610.0,104600.0,1.31127016]
[1737308230110,0.00140045,104610.0,104600.0,1.1820632]
[1737308231152,0.00140045,104610.0,104600.0,1.18133612]
[1737308231385,0.00140045,104610.0,104600.0,1.1820632]
[1737308232329,0.00140045,104610.0,104600.0,1.39693569]
[1737308232571,0.00140045,104610.0,104600.0,1.39620861]
[1737308232745,0.00140045,104610.0,104600.0,1.39693569]
[1737308233455,0.00140045,104610.0,104600.0,1.39620861]
[1737308233684,0.00140045,104610.0,104600.0,1.18133612]
[1737308234566,0.00140045,104610.0,104600.0,1.1820632]
[1737308234770,0.00140045,104610.0,104600.0,1.18133612]
[1737308234973,0.00569956,104610.0,104600.0,1.18133612]
[1737308235176,0.00569956,104610.0,104600.0,1.1820632]